fUSD/lending_fUSD_20241016
["ID","MTS","AMOUNT","RATE_DAILY","PERIOD"]
[340350291,1729082537782,-200.0,0.00034808,120]
[340350292,1729082537805,-500.0,0.00034834,120]
[340350293,1729082537828,-272.17732634,0.00034849,120]
[340350294,1729082537851,-700.0,0.00034864,60]
[340350295,1729082537875,-800.0,0.00034874,31]
[340350296,1729082537899,-441.65261006,0.00035,60]
[340350297,1729082537921,-3599.99999903,0.00035,36]
[340350298,1729082537945,-501.07046897,0.00035,30]
[340350299,1729082537969,-600.0,0.00035,30]
[340350300,1729082537991,-600.0,0.00035,30]
[340350301,1729082538016,-600.0,0.00035,30]
[340350302,1729082538041,-600.0,0.00035,30]
[340350303,1729082538064,-600.0,0.00035,30]
[340350304,1729082538089,-600.0,0.00035,30]
[340350305,1729082538114,-600.0,0.00035,30]
[340350306,1729082538138,-600.0,0.00035,30]
[340350307,1729082538165,-600.0,0.00035,30]
[340350308,1729082538189,-600.0,0.00035,30]
[340350309,1729082538213,-600.0,0.00035,30]
[340350310,1729082538246,-600.0,0.00035,30]
[340350311,1729082538286,-600.0,0.00035,30]
[340350312,1729082538327,-1181.66307754,0.00035,30]
[340350313,1729082538366,-500.0,0.00035,30]
[340350314,1729082538404,-900.0,0.00035,30]
[340350315,1729082538443,-500.0,0.00035,30]
[340350316,1729082538485,-900.0,0.00035,30]
[340350317,1729082538517,-500.0,0.00035,30]
[340350318,1729082538553,-900.0,0.00035,30]
[340350319,1729082538589,-860.34040552,0.00035,30]
[340350320,1729082538623,-900.0,0.00035,30]
[340350321,1729082538659,-900.0,0.00035,30]
[340350322,1729082538690,-900.0,0.00035,30]
[340350323,1729082538724,-900.0,0.00035,30]
[340350324,1729082538756,-900.0,0.00035,30]
[340350325,1729082538788,-900.0,0.00035,30]
[340350326,1729082538820,-500.0,0.00035,30]
[340350327,1729082538850,-900.0,0.00035,30]
[340350328,1729082538883,-500.0,0.00035,30]
[340350329,1729082538914,-900.0,0.00035,30]
[340350330,1729082538944,-500.0,0.00035,30]
[340350331,1729082538976,-900.0,0.00035,30]
[340350332,1729082539008,-530.39235594,0.00035,30]
[340350333,1729082539040,-1673.29408752,0.00035,30]
[340350334,1729082539071,-600.0,0.00035,30]
[340350335,1729082539103,-500.0,0.00035,30]
[340350336,1729082539137,-600.0,0.00035,30]
[340350337,1729082539169,-500.0,0.00035,30]
[340350338,1729082539201,-502.46711872,0.00035,30]
[340350339,1729082539234,-600.0,0.00035,30]
[340350340,1729082539266,-600.0,0.00035,30]
[340350341,1729082539299,-600.0,0.00035,30]
[340350342,1729082539332,-600.0,0.00035,30]
[340350343,1729082539366,-600.0,0.00035,30]
[340350344,1729082539401,-600.0,0.00035,30]
[340350345,1729082539437,-600.0,0.00035,30]
[340350346,1729082539473,-900.0,0.00035,30]
[340350347,1729082539509,-600.0,0.00035,30]
[340350348,1729082539542,-900.0,0.00035,30]
[340350349,1729082539575,-600.0,0.00035,30]
[340350350,1729082539610,-900.0,0.00035,30]
[340350351,1729082539643,-600.0,0.00035,30]
[340350352,1729082539668,-900.0,0.00035,30]
[340350353,1729082539943,-600.0,0.00035,30]
[340350354,1729082539966,-900.0,0.00035,30]
[340350355,1729082539988,-623.94293447,0.00035,30]
[340350356,1729082540012,-900.0,0.00035,30]
[340350357,1729082540035,-900.0,0.00035,30]
[340350358,1729082540058,-1800.0,0.00035,30]
[340350359,1729082540080,-900.0,0.00035,30]
[340350360,1729082540102,-1800.0,0.00035,30]
[340350361,1729082540126,-900.0,0.00035,30]
[340350362,1729082540150,-1800.0,0.00035,30]
[340350363,1729082540172,-900.0,0.00035,30]
[340350364,1729082540194,-1800.0,0.00035,30]
[340350365,1729082540216,-1800.0,0.00035,30]
[340350366,1729082540239,-900.0,0.00035,30]
[340350367,1729082540261,-1800.0,0.00035,30]
[340350368,1729082540283,-900.0,0.00035,30]
[340350369,1729082540306,-1800.0,0.00035,30]
[340350370,1729082540328,-900.0,0.00035,30]
[340350371,1729082540351,-1411.59379036,0.00035,30]
[340350372,1729082540374,-1800.0,0.00035,30]
[340350373,1729082540397,-1800.0,0.00035,30]
[340350374,1729082540424,-1800.0,0.00035,30]
[340350375,1729082540448,-1800.0,0.00035,30]
[340350376,1729082540471,-1800.0,0.00035,30]
[340350377,1729082540495,-1800.0,0.00035,30]
[340350378,1729082540517,-3155.96748256,0.00035,30]
[340350379,1729082540540,-500.0,0.00035,30]
[340350380,1729082540563,-500.0,0.00035,30]
[340350381,1729082540585,-500.0,0.00035,30]
[340350382,1729082540608,-800.0,0.00035,120]
[340350383,1729082540630,-1138.8,0.00035,30]
[340350384,1729082540653,-1239.57701133,0.00035,30]
[340350385,1729082540675,-150.0,0.00035,30]
[340350386,1729082540698,-1000.0,0.00035,30]
[340350387,1729082540722,-900.0,0.00035,36]
[340350388,1729082540745,-1304.7,0.00035057,120]
[340350389,1729082540769,-2000.0,0.00035068,30]
[340350390,1729082540792,-150.0,0.00035249,120]
[340350391,1729082540817,-2000.0,0.00035342,30]
[340350392,1729082540841,-500.0,0.00035412,60]
[340350393,1729082540864,-2000.0,0.00035449,120]
[340350394,1729082540887,-150.0,0.00035573,120]
[340350395,1729082540910,-627.485,0.00035585,42]
[340350396,1729082540932,-315.68,0.000356,30]
[340350397,1729082540957,-2000.0,0.00035616,30]
[340350398,1729082540980,-173.44,0.00035616,120]
[340350399,1729082541005,-468.27239,0.00035682,120]
[340350400,1729082541028,-200.0,0.00035713,120]
[340350401,1729082541053,-500.0,0.00035752,120]
[340350402,1729082541076,-150.0,0.00035906,120]
[340350403,1729082541100,-700.0,0.0003596,60]
[340350404,1729082541124,-900.0,0.00036,37]
[340350405,1729082541148,-900.0,0.00036,37]
[340350406,1729082541172,-2411.38230671,0.00036,120]
[340350407,1729082541198,-569.76146718,0.00036,120]
[340350408,1729082541224,-800.0,0.00036,120]
[340350409,1729082541247,-500.0,0.00036,120]
[340350410,1729082541273,-1035.2,0.00036,90]
[340350411,1729082541295,-1000.0,0.00036,120]
[340350412,1729082541318,-150.0,0.00036,30]
[340350413,1729082541341,-150.0,0.0003602,120]
[340350414,1729082541364,-150.0,0.0003603,120]
[340350415,1729082541388,-150.0,0.0003637,120]
[340350416,1729082541414,-500.0,0.00036508,60]
[340350417,1729082541438,-200.0,0.00036617,120]
[340350418,1729082541462,-500.0,0.0003667,120]
[340350419,1729082541487,-2000.0,0.00036673,120]
[340350420,1729082541512,-900.0,0.00037,38]
[340350421,1729082541535,-217.89178385,0.00037,30]
[340350422,1729082541558,-899.99999901,0.00037,38]
[340350423,1729082541581,-627.79431013,0.00037,30]
[340350424,1729082541605,-600.0,0.00037,30]
[340350425,1729082541629,-500.0,0.00037,30]
[340350426,1729082541653,-600.0,0.00037,30]
[340350427,1729082541677,-600.0,0.00037,30]
[340350428,1729082541700,-500.0,0.00037,30]
[340350429,1729082541726,-600.0,0.00037,30]
[340350430,1729082541752,-600.0,0.00037,30]
[340350431,1729082541777,-600.0,0.00037,30]
[340350432,1729082541802,-600.0,0.00037,30]
[340350433,1729082541963,-600.0,0.00037,30]
[340350434,1729082541988,-600.0,0.00037,30]
[340350435,1729082542011,-600.0,0.00037,30]
[340350436,1729082542047,-600.0,0.00037,30]
[340350437,1729082542075,-600.0,0.00037,30]
[340350438,1729082542100,-600.0,0.00037,30]
[340350439,1729082542125,-500.0,0.00037,30]
[340350440,1729082542151,-600.0,0.00037,30]
[340350441,1729082542176,-600.0,0.00037,30]
[340350442,1729082542202,-506.11349819,0.00037,30]
[340350443,1729082542227,-900.0,0.00037,30]
[340350444,1729082542253,-900.0,0.00037,30]
[340350445,1729082542278,-900.0,0.00037,30]
[340350446,1729082542303,-900.0,0.00037,30]
[340350447,1729082542328,-900.0,0.00037,30]
[340350448,1729082542354,-900.0,0.00037,30]
[340350449,1729082542382,-900.0,0.00037,30]
[340350450,1729082542412,-500.0,0.00037,30]
[340350451,1729082542436,-900.0,0.00037,30]
[340350452,1729082542463,-900.0,0.00037,30]
[340350453,1729082542490,-500.0,0.00037,30]
[340350454,1729082542515,-500.0,0.00037,30]
[340350455,1729082542539,-900.0,0.00037,30]
[340350456,1729082542565,-500.0,0.00037,30]
[340350457,1729082542594,-500.0,0.00037,30]
[340350458,1729082542625,-900.0,0.00037,30]
[340350459,1729082542651,-505.90323422,0.00037,30]
[340350460,1729082542676,-500.0,0.00037,30]
[340350461,1729082542699,-229.72457646,0.00037,30]
[340350462,1729082542726,-900.0,0.00037,30]
[340350463,1729082542751,-500.0,0.00037,30]
[340350464,1729082542775,-500.0,0.00037,30]
[340350465,1729082542799,-900.0,0.00037,30]
[340350466,1729082542823,-500.0,0.00037,30]
[340350467,1729082542850,-500.0,0.00037,30]
[340350468,1729082542875,-900.0,0.00037,30]
[340350469,1729082542899,-500.0,0.00037,30]
[340350470,1729082542923,-923.73341549,0.00037,30]
[340350471,1729082542948,-500.0,0.00037,30]
[340350472,1729082542975,-500.0,0.00037,30]
[340350473,1729082543000,-900.0,0.00037,30]
[340350474,1729082543025,-900.0,0.00037,30]
[340350475,1729082543049,-500.0,0.00037,30]
[340350476,1729082543074,-600.0,0.00037,30]
[340350477,1729082543100,-900.0,0.00037,30]
[340350478,1729082543126,-500.0,0.00037,30]
[340350479,1729082543150,-600.0,0.00037,30]
[340350480,1729082543175,-900.0,0.00037,30]
[340350481,1729082543199,-500.0,0.00037,30]
[340350482,1729082543223,-600.0,0.00037,30]
[340350483,1729082543249,-900.0,0.00037,30]
[340350484,1729082543273,-1800.0,0.00037,30]
[340350485,1729082543298,-600.0,0.00037,30]
[340350486,1729082543322,-500.0,0.00037,30]
[340350487,1729082543346,-900.0,0.00037,30]
[340350488,1729082543371,-1800.0,0.00037,30]
[340350489,1729082543395,-600.0,0.00037,30]
[340350490,1729082543421,-900.0,0.00037,30]
[340350491,1729082543447,-600.0,0.00037,30]
[340350492,1729082543475,-500.0,0.00037,30]
[340350493,1729082543503,-1800.0,0.00037,30]
[340350494,1729082543530,-925.85903407,0.00037,30]
[340350495,1729082543555,-500.53882992,0.00037,30]
[340350496,1729082543580,-600.0,0.00037,30]
[340350497,1729082543605,-1800.0,0.00037,30]
[340350498,1729082543630,-900.0,0.00037,30]
[340350499,1729082543655,-500.0,0.00037,30]
[340350500,1729082543680,-600.0,0.00037,30]
[340350501,1729082543705,-900.0,0.00037,30]
[340350502,1729082543731,-1800.0,0.00037,30]
[340350503,1729082543755,-600.0,0.00037,30]
[340350504,1729082543780,-600.0,0.00037,30]
[340350505,1729082543807,-600.0,0.00037,30]
[340350506,1729082543831,-600.0,0.00037,30]
[340350507,1729082543855,-600.0,0.00037,30]
[340350508,1729082543880,-600.0,0.00037,30]
[340350509,1729082543904,-500.0,0.00037,30]
[340350510,1729082543928,-600.0,0.00037,30]
[340350511,1729082543952,-500.0,0.00037,30]
[340350512,1729082543977,-500.63640078,0.00037,30]
[340350513,1729082544002,-500.60579745,0.00037,30]
[340350514,1729082544025,-900.0,0.00037,30]
[340350515,1729082544050,-900.0,0.00037,30]
[340350516,1729082544075,-1800.0,0.00037,30]
[340350517,1729082544102,-900.0,0.00037,30]
[340350518,1729082544127,-1800.0,0.00037,30]
[340350519,1729082544151,-900.0,0.00037,30]
[340350520,1729082544175,-1800.0,0.00037,30]
[340350521,1729082544199,-900.0,0.00037,30]
[340350522,1729082544224,-1800.0,0.00037,30]
[340350523,1729082544248,-1800.0,0.00037,30]
[340350524,1729082544272,-1800.0,0.00037,30]
[340350525,1729082544296,-1800.0,0.00037,30]
[340350526,1729082544321,-1800.0,0.00037,30]
[340350527,1729082544346,-1800.0,0.00037,30]
[340350528,1729082544371,-1800.0,0.00037,30]
[340350529,1729082544396,-500.0,0.00037,30]
[340350530,1729082544426,-182.7468704,0.00037,30]
[340350531,1729082544451,-500.0,0.00037,30]
[340350532,1729082544476,-500.0,0.00037,30]
[340350533,1729082544503,-800.0,0.00037,120]
[340350534,1729082544528,-2102.0,0.00037,117]
[340350535,1729082544552,-150.0,0.00037,30]
[340350536,1729082544578,-710.60776055,0.00037056,60]
[340350537,1729082544784,-483.9956473,0.000372,103]
[340350538,1729082544810,-483.99564726,0.000372,103]
[340350539,1729082544834,-483.99564726,0.000372,103]
[340350540,1729082544860,-483.99564726,0.000372,103]
[340350541,1729082544884,-483.99564726,0.000372,103]
[340350542,1729082544910,-2000.0,0.0003726,30]
[340350543,1729082544936,-2000.0,0.0003726,60]
[340350544,1729082544962,-1000.0,0.0003726,30]
[340350545,1729082544986,-1000.0,0.0003726,30]
[340350546,1729082545011,-1000.0,0.0003726,30]
[340350547,1729082545035,-150.0,0.00037319,120]
[340350548,1729082545059,-1000.0,0.000375,30]
[340350549,1729082545084,-200.0,0.00037522,120]
[340350550,1729082545109,-2000.0,0.00037534,30]
[340350551,1729082545132,-2000.0,0.00037534,60]
[340350552,1729082545156,-500.0,0.00037587,120]
[340350553,1729082545180,-283.43602982,0.00037604,60]
[340350554,1729082545205,-1304.7,0.00037641,120]
[340350555,1729082545230,-2000.0,0.00037808,30]
[340350556,1729082545256,-2000.0,0.00037808,60]
[340350557,1729082545283,-900.0,0.00038,39]
[340350558,1729082545308,-500.0,0.00038,120]
[340350559,1729082545332,-1516.78536927,0.00038,120]
[340350560,1729082545356,-888.96885752,0.00038,120]
[340350561,1729082545381,-800.0,0.00038,120]
[340350562,1729082545406,-173.031047,0.00038,30]
[340350563,1729082545435,-150.0,0.0003803,120]
[340350564,1729082545460,-2000.0,0.00038082,30]
[340350565,1729082545486,-2000.0,0.00038082,60]
[340350566,1729082545511,-150.0,0.00038347,120]
[340350567,1729082545536,-150.0,0.00038351,120]
[340350568,1729082545560,-2000.0,0.00038356,30]
[340350569,1729082545584,-2000.0,0.00038356,60]
[340350570,1729082545611,-157.64545286,0.00038356,30]
[340350571,1729082545637,-681.14281594,0.0003836,120]
[340350572,1729082545661,-681.14281594,0.0003836,120]
[340350573,1729082545686,-681.14281594,0.0003836,120]
[340350574,1729082545711,-681.14281594,0.0003836,120]
[340350575,1729082545736,-681.14281594,0.0003836,120]
[340350576,1729082545760,-681.14281594,0.0003836,120]
[340350577,1729082545784,-681.14281594,0.0003836,120]
[340350578,1729082545808,-681.14281594,0.0003836,120]
[340350579,1729082545834,-681.14281594,0.0003836,120]
[340350580,1729082545858,-681.14281594,0.0003836,120]
[340350581,1729082545888,-681.14281594,0.0003836,120]
[340350582,1729082545921,-681.14281594,0.0003836,120]
[340350583,1729082545950,-681.14281594,0.0003836,120]
[340350584,1729082545976,-681.14281594,0.0003836,120]
[340350585,1729082546001,-681.14281594,0.0003836,120]
[340350586,1729082546028,-681.14281594,0.0003836,120]
[340350587,1729082546052,-681.14281594,0.0003836,120]
[340350588,1729082546078,-681.14281594,0.0003836,120]
[340350589,1729082546103,-681.14281594,0.0003836,120]
[340350590,1729082546132,-681.64,0.0003836,120]
[340350591,1729082546156,-1021.72672392,0.0003836,120]
[340350592,1729082546183,-1021.72672392,0.0003836,120]
[340350593,1729082546209,-1021.72672392,0.0003836,120]
[340350594,1729082546234,-1021.72672392,0.0003836,120]
[340350595,1729082546260,-1021.72672392,0.0003836,120]
[340350596,1729082546285,-1021.72672392,0.0003836,120]
[340350597,1729082546309,-1021.72672392,0.0003836,120]
[340350598,1729082546334,-1021.72672392,0.0003836,120]
[340350599,1729082546366,-1021.72672392,0.0003836,120]
[340350600,1729082546391,-1021.72672392,0.0003836,120]
[340350601,1729082546420,-1021.72672392,0.0003836,120]
[340350602,1729082546449,-1021.72672392,0.0003836,120]
[340350603,1729082546475,-1021.72672392,0.0003836,120]
[340350604,1729082546502,-1021.72672392,0.0003836,120]
[340350605,1729082546527,-1021.72672392,0.0003836,120]
[340350606,1729082546551,-1021.72672392,0.0003836,120]
[340350607,1729082546575,-1021.72672392,0.0003836,120]
[340350608,1729082546599,-1021.72672392,0.0003836,120]
[340350609,1729082546625,-1021.72672392,0.0003836,120]
[340350610,1729082546650,-1022.22,0.0003836,120]
[340350611,1729082546677,-1090.4209779,0.0003836,120]
[340350612,1729082546702,-1090.4209779,0.0003836,120]
[340350613,1729082546727,-1090.4209779,0.0003836,120]
[340350614,1729082546752,-1090.4209779,0.0003836,120]
[340350615,1729082546777,-1090.4209779,0.0003836,120]
[340350616,1729082546802,-1090.4209779,0.0003836,120]
[340350617,1729082546827,-1090.4209779,0.0003836,120]
[340350618,1729082546851,-1090.4209779,0.0003836,120]
[340350619,1729082546878,-1090.4209779,0.0003836,120]
[340350620,1729082546903,-1090.4209779,0.0003836,120]
[340350621,1729082546926,-1090.4209779,0.0003836,120]
[340350622,1729082546950,-2000.0,0.000384,30]
[340350623,1729082546973,-200.0,0.00038426,120]
[340350624,1729082546999,-826.55058781,0.000385,120]
[340350625,1729082547024,-500.0,0.00038505,120]
[340350626,1729082547049,-157.64545286,0.00038548,30]
[340350627,1729082547073,-2579.79685517,0.00038646,40]
[340350628,1729082547097,-25000.0,0.00038646,40]
[340350629,1729082547122,-695.8985192,0.00038646,40]
[340350630,1729082547147,-227.32333951,0.00038646,40]
[340350631,1729082547172,-225.17395312,0.00038646,40]
[340350632,1729082547198,-224.26042822,0.00038646,40]
[340350633,1729082547222,-157.64545286,0.0003874,30]
[340350634,1729082547246,-150.0,0.00038764,120]
[340350635,1729082547270,-2608.83417486,0.000388,60]
[340350636,1729082547295,-473.99521125,0.0003888,120]
[340350637,1729082547319,-2729.44869729,0.0003888,90]
[340350638,1729082547343,-201690.65479954,0.000389,30]
[340350639,1729082547381,-8576.03961943,0.000389,30]
[340350640,1729082547612,-157.64545286,0.00038904,30]
[340350641,1729082547646,-900.0,0.00039,40]
[340350642,1729082547670,-381.39592112,0.00039,120]
[340350643,1729082547694,-256.15980059,0.00039,120]
[340350644,1729082547718,-1045.73976535,0.00039,120]
[340350645,1729082547742,-39999.0,0.00039,60]
[340350646,1729082547764,-339.0,0.00039,30]
[340350647,1729082547787,-800.0,0.00039,120]
[340350648,1729082547811,-339.96967518,0.00039,120]
[340350649,1729082547835,-157.64545286,0.00039096,30]
[340350650,1729082547863,-1014.52,0.00039255,35]
[340350651,1729082547886,-157.64545286,0.00039288,30]
[340350652,1729082547909,-216.795165,0.00039331,120]
[340350653,1729082547932,-572.29173269,0.000394,30]
[340350654,1729082547956,-500.0,0.00039423,120]
[340350655,1729082547979,-203.96365685,0.0003944,120]
[340350656,1729082548003,-157.64545286,0.00039479,30]
[340350657,1729082548026,-10257.37628437,0.000395,90]
[340350658,1729082548050,-1000.0,0.000395,30]
[340350659,1729082548073,-150.0,0.00039621,120]
[340350660,1729082548096,-157.64545286,0.00039644,30]
[340350661,1729082548121,-545324.29872873,0.000398,120]
[340350662,1729082548145,-1077.58057508,0.000398,120]
[340350663,1729082548169,-157.64545286,0.00039836,30]
[340350664,1729082548192,-600.0,0.00039874,36]
[340350665,1729082548216,-3420.44432937,0.0003988,30]
[340350666,1729082548241,-50000.0,0.00039887,30]
[340350667,1729082548264,-178.24612387,0.0003999,120]
[340350668,1729082548288,-50000.0,0.0004,40]
[340350669,1729082548313,-50000.0,0.0004,50]
[340350670,1729082548336,-900.0,0.0004,41]
[340350671,1729082548360,-185.13986323,0.0004,120]
[340350672,1729082548383,-1492.38651752,0.0004,30]
[340350673,1729082548410,-301.63410178,0.0004,30]
[340350674,1729082548435,-294.73338154,0.0004,30]
[340350675,1729082548458,-1445.52367072,0.0004,120]
[340350676,1729082548481,-1172.16105614,0.0004,120]
[340350677,1729082548506,-664.82356711,0.0004,60]
[340350678,1729082548530,-641.3730153,0.0004,120]
[340350679,1729082548553,-3000.0,0.0004,80]
[340350680,1729082548578,-800.0,0.0004,120]
[340350681,1729082548603,-8682.08410681,0.0004,120]
[340350682,1729082548629,-1000.0,0.0004,33]
[340350683,1729082548653,-1033.0710966,0.0004,30]
[340350684,1729082548677,-9585.79111402,0.0004,90]
[340350685,1729082548703,-1224.0,0.0004,120]
[340350686,1729082548732,-1979.70131457,0.0004,120]
[340350687,1729082548757,-205.77545434,0.0004,120]
[340350688,1729082548781,-1000.0,0.0004,120]
[340350689,1729082548805,-500.0,0.0004,120]
[340350690,1729082548828,-500.0,0.0004,120]
[340350691,1729082548852,-531.0,0.0004,120]
[340350692,1729082548876,-1056.0,0.0004,120]
[340350693,1729082548900,-3032.0,0.0004,120]
[340350694,1729082548923,-153.0,0.0004,30]
[340350695,1729082548946,-2000.0,0.0004,60]
[340350696,1729082548968,-167.17350454,0.0004,120]
[340350697,1729082548991,-305.55582608,0.0004,30]
[340350698,1729082549014,-300.0,0.0004,30]
[340350699,1729082549036,-300.0,0.0004,30]
[340350700,1729082549061,-52229.68095365,0.0004,60]
[340350701,1729082549086,-379929.71792444,0.0004,30]
[340350702,1729082555708,-1879.16359069,0.000388,120]
[340350703,1729082555735,-1622041.69800925,0.0004,30]
[340350704,1729082555759,-1516.78536927,0.0004,120]
[340350705,1729082555782,-888.96885752,0.0004,120]
[340350706,1729082555805,-200.0,0.0004,120]
[340350707,1729082555828,-3000.0,0.0004,60]
[340350708,1729082555850,-11342.55,0.0004,30]
[340350709,1729082555873,-1559.35003777,0.0004,30]
[340350710,1729082555896,-495.28396898,0.0004,120]
[340350711,1729082555920,-183.8274157,0.0004,30]
[340350712,1729082555945,-44675.48569819,0.0004,120]
[340350713,1729082555969,-5127.76,0.0004,120]
[340350714,1729082555993,-8123.84,0.0004,120]
[340350715,1729082556017,-400.9,0.0004,30]
[340350716,1729082556041,-4912.23,0.0004,120]
[340350717,1729082556065,-972.18,0.0004,120]
[340350718,1729082556089,-341.97,0.0004,120]
[340350719,1729082556112,-2021.74,0.0004,120]
[340350720,1729082556135,-755.08871349,0.0004,120]
[340350721,1729082556158,-2963.54202433,0.0004,30]
[340350722,1729082556182,-4430.59255497,0.0004,120]
[340350723,1729082556205,-479.11410042,0.0004,30]
[340350724,1729082556229,-771.50817631,0.0004,30]
[340350725,1729082556253,-666.76855955,0.0004,120]
[340350726,1729082556276,-1253.9423901,0.0004,120]
[340350727,1729082556299,-1600.32678392,0.0004,120]
[340350728,1729082556321,-150.0,0.0004,30]
[340350729,1729082556344,-1536.97173874,0.0004,120]
[340350730,1729082556369,-1280.0,0.0004,120]
[340350731,1729082556394,-157.64545286,0.00040027,30]
[340350732,1729082556421,-1566.88,0.0004018,60]
[340350733,1729082556445,-157.64545286,0.00040219,30]
[340350734,1729082556469,-1304.7,0.00040225,120]
[340350735,1729082556494,-337.21047659,0.00040273,100]
[340350736,1729082556520,-2000.0,0.00040274,60]
[340350737,1729082556544,-150.0,0.00040286,120]
[340350738,1729082556568,-500.0,0.0004034,120]
[340350739,1729082556591,-157.64545286,0.00040384,30]
[340350740,1729082556618,-150.0,0.00040404,120]
[340350741,1729082556641,-2000.0,0.00040548,60]
[340350742,1729082556666,-1014.52,0.0004056,46]
[340350743,1729082556691,-150.0,0.00040677,120]
[340350744,1729082556717,-2000.0,0.00040822,60]
[340350745,1729082556743,-1592.16392,0.000409,30]
[340350746,1729082556767,-168.06915773,0.000409,120]
[340350747,1729082556791,-168.06915773,0.000409,120]
[340350748,1729082556815,-168.06915773,0.000409,120]
[340350749,1729082556841,-50000.0,0.00041,41]
[340350750,1729082556870,-50000.0,0.00041,51]
[340350751,1729082556897,-439.07161398,0.00041,120]
[340350752,1729082556921,-900.0,0.00041,42]
[340350753,1729082556945,-276.40528498,0.00041,30]
[340350754,1729082556971,-3506.13021159,0.00041,120]
[340350755,1729082556995,-6155.84272053,0.00041,90]
[340350756,1729082557019,-301.999997,0.00041,120]
[340350757,1729082557042,-2038.34495938,0.00041,120]
[340350758,1729082557066,-187.95306128,0.00041,30]
[340350759,1729082557091,-161.515523,0.00041,30]
[340350760,1729082557118,-464.80383298,0.00041095,120]
[340350761,1729082557147,-500.0,0.00041095,120]
[340350762,1729082557174,-300.0,0.00041095,120]
[340350763,1729082557199,-517.5047356,0.00041095,30]
[340350764,1729082557224,-1500.0,0.00041095,120]
[340350765,1729082557247,-806.28896384,0.00041095,120]
[340350766,1729082557271,-2000.0,0.00041096,60]
[340350767,1729082557295,-420.0,0.0004111,60]
[340350768,1729082557318,-174.34,0.00041123,30]
[340350769,1729082557342,-150.0,0.00041139,30]
[340350770,1729082557369,-459.70667161,0.00041166,30]
[340350771,1729082557394,-217.43487302,0.00041166,30]
[340350772,1729082557425,-500.0,0.00041258,120]
[340350773,1729082557610,-150.0,0.00041318,30]
[340350774,1729082557636,-150.0,0.00041352,30]
[340350775,1729082557662,-459.70667161,0.00041357,30]
[340350776,1729082557686,-217.43487302,0.00041357,30]
[340350777,1729082557713,-150.0,0.00041381,120]
[340350778,1729082557740,-150.0,0.00041406,120]
[340350779,1729082557766,-6214.21682077,0.00041498,120]
[340350780,1729082557790,-259.86,0.000415,120]
[340350781,1729082557813,-6692.41057443,0.000415,120]
[340350782,1729082557837,-459.70667161,0.00041547,30]
[340350783,1729082557863,-217.43487302,0.00041547,30]
[340350784,1729082557887,-150.0,0.00041665,120]
[340350785,1729082557911,-459.70667161,0.00041737,30]
[340350786,1729082557936,-217.43487302,0.00041737,30]
[340350787,1729082557961,-150.0,0.00041812,30]
[340350788,1729082557985,-150.0,0.00041847,30]
[340350789,1729082558008,-1014.52,0.00041865,56]
[340350790,1729082558031,-151.27678,0.000419,120]